[Event "Szansa Chess Open 2022"]
[Site "Warsaw"]
[Date "2022.09.18"]
[Round "9.13"]
[White "Bespalov, Ivan"]
[Black "Pires, Emanuel Joao Robarts"]
[Result "1/2-1/2"]
[ECO "B08"]
[WhiteElo "1841"]
[BlackElo "1999"]
[Annotator "TA"]
[PlyCount "161"]
[EventDate "2022.09.17"]
[EventCountry "POL"]
[SourceTitle "playchess.com"]
[Source "ChessBase"]
[SourceQuality "1"]
[TimeControl "900+10"]

{[%evp 17,161,0,11,-2,45,43,45,24,25,26,26,17,23,24,26,7,14,6,8,0,0,0,8,0,0,-11,-15,-19,-22,-12,-10,-18,-14,-27,-8,-36,62,18,20,12,45,22,77,8,97,34,34,33,24,33,42,27,131,129,118,139,156,131,161,150,129,139,90,0,11,0,0,0,0,0,0,-2,0,0,0,0,0,0,0,0,0,-20,-43,-53,-7,-49,-61,-59,0,-1,0,0,0,0,0,0,0,0,0,0,0,0,0,0,0,0,0,0,0,0,0,0,0,0,0,0,0,0,0,0,0,0,0,0,0,0,0,0,0,0,0,0,0,0,0,0,0,0,0,0,0,0,0,0,0,0]} 1. e4 {[%emt 0:00:01]} d6 {[%emt 0:00:02]} 2. d4 {[%emt 0:00:03]} Nf6 {[%emt 0:00:01]} 3. Nc3 {[%emt 0:00:02]} g6 {[%emt 0:00:02]} 4. Nf3 {[%emt 0:00:02]} Bg7 {[%emt 0:00:01]} 5. h3 {[%emt 0:00:02]} O-O {[%emt 0:00:02]} 6. Be2 {[%emt 0:00:08]} Nc6 {[%emt 0:00:03]} 7. O-O {[%emt 0:00:03]} e5 {[%emt 0:00:01]} 8. dxe5 {[%emt 0:00:25]} dxe5 {[%emt 0:00:03]} 9. Qxd8 {[%emt 0:00:05]} Rxd8 {[%emt 0:00:11]} 10. Bg5 {[%emt 0:00:45] B08: Pirc Defence: Classical System.} Nd4 {[%emt 0:01:47]} (10... Be6 $11) 11. Nxd4 $14 {[%emt 0:00:37]} ({But not} 11. Nxe5 Re8 12. Bxf6 Bxf6 $11) 11... Rxd4 {[%emt 0:01:06] [#]} 12. Rfd1 $146 {[%emt 0:04:12] White is slightly better.} ({Predecessor:} 12. Nb5 Rxe4 13. Bd3 Ra4 14. b3 Ra5 15. Bd2 Rxb5 16. Bxb5 Bf5 17. Rac1 Ne4 18. Rcd1 Nd6 {1-0 (40) Lopes,M (2020)-Bruce,S (2145) Sao Paulo 2016}) 12... c6 {[%emt 0:01:27] Inhibits Nb5.} 13. Be3 {[%emt 0:00:27]} Rxd1+ {[%emt 0:00:39]} 14. Rxd1 {[%emt 0:00:02] [#] Rd8+ is the strong threat.} Be6 {[%emt 0:00:01]} 15. f3 {[%emt 0:00:42]} Bf8 {[%emt 0:00:09]} 16. a3 {[%emt 0:00:59]} Nd7 {[%emt 0:00:17]} 17. Kf2 {[%emt 0:00:14][%cal Oe2c4]} Nb6 {[%emt 0:00:17] Inhibits Bc4.} 18. Bg5 {[%emt 0:01:40]} Bc5+ {[%emt 0:00:51]} 19. Be3 {[%emt 0:00:03]} Be7 {[%emt 0:00:03]} 20. Ke1 {[%emt 0:02:19]} h5 {[%emt 0:00:28]} 21. Bf2 {[%emt 0:00:36]} Kf8 {[%emt 0:00:07]} 22. Bg3 {[%emt 0:00:09]} f6 {[%emt 0:00:05]} 23. Bf2 {[%emt 0:00:01]} Ke8 {[%emt 0:00:02]} 24. Be3 {[%emt 0:00:05]} g5 {[%emt 0:02:38]} 25. Kf2 {[%emt 0:00:32]} Kf7 {[%emt 0:00:05]} 26. Bc1 {[%emt 0:00:43]} g4 {[%emt 0:00:45]} ({Black should play} 26... Bc5+ $15 27. Be3 Be7) 27. hxg4 {[%emt 0:00:11]} hxg4 {[%emt 0:00:02]} 28. fxg4 {[%emt 0:00:34]} Rh8 {[%emt 0:01:16]} 29. Kg3 {[%emt 0:00:38]} Ke8 {[%emt 0:00:25] [#]} (29... Nc8 $11) 30. b3 {[%emt 0:00:13]} (30. Rf1 $1 $16) 30... Bc5 {[%emt 0:00:43]} (30... Nc8 $11) 31. Nb1 {[%emt 0:00:53]} (31. Rf1 $16) 31... Nc8 {[%emt 0:01:01]} 32. b4 {[%emt 0:00:06]} Bf8 {[%emt 0:01:06]} 33. Be3 {[%emt 0:00:13]} a6 {[%emt 0:00:47]} 34. Nc3 {[%emt 0:00:20]} Ne7 {[%emt 0:00:46]} (34... Nd6 $11 {keeps the balance.}) 35. Na4 $16 {[%emt 0:00:08]} Ng6 {[%emt 0:00:25]} 36. Nb6 {[%emt 0:00:27]} Bh6 {[%emt 0:00:38]} 37. Bxh6 {[%emt 0:00:19] White is more active.} Rxh6 {[%emt 0:00:01]} 38. Bc4 {[%emt 0:00:14]} Nf4 {[%emt 0:00:33]} 39. Bxe6 {[%emt 0:00:06]} Nxe6 {[%emt 0:00:02][%mdl 4096] Endgame KRN-KRN} 40. c3 {[%emt 0:00:20]} (40. Rd7 $16) 40... Rh7 {[%emt 0:00:31]} 41. Nc4 {[%emt 0:00:47]} Ng5 {[%emt 0:01:16]} 42. Nd6+ {[%emt 0:00:05]} Kf8 {[%emt 0:00:07] And now ...Rd7 would win.} 43. Rf1 {[%emt 0:00:08]} Ke7 {[%emt 0:00:09]} 44. Nf5+ {[%emt 0:00:01]} Kd7 {[%emt 0:00:06]} 45. Rd1+ {[%emt 0:00:03]} Kc7 {[%emt 0:00:01]} 46. Re1 {[%emt 0:00:02]} Rd7 {[%emt 0:00:04]} 47. Re3 {[%emt 0:00:04]} Rd2 {[%emt 0:00:08]} 48. a4 {[%emt 0:00:04]} a5 {[%emt 0:00:27]} 49. Ng7 {[%emt 0:00:01]} axb4 {[%emt 0:00:41]} 50. cxb4 {[%emt 0:00:02]} Kd7 {[%emt 0:00:21]} (50... Rd4 $15 51. Kh4 (51. Ne8+ Kd7 $17) 51... Kd7) 51. Nh5 {[%emt 0:00:28]} Ke7 {[%emt 0:00:09][%mdl 1024] Black has compensation.} 52. Ng7 {[%emt 0:00:10]} Kf7 {[%emt 0:00:29]} (52... Rb2 $15 53. Nf5+ Ke6) 53. Nf5 $11 {[%emt 0:00:01] The position is equal.} Ne6 {[%emt 0:00:05]} 54. Rc3 {[%emt 0:00:26]} Nf4 {[%emt 0:00:08] Threatens to win with ...Ne2+.} 55. Rb3 {[%emt 0:00:18]} Nxg2 {[%emt 0:00:15]} 56. Nd6+ {[%emt 0:00:06]} Rxd6 {[%emt 0:00:04]} 57. Kxg2 {[%emt 0:00:01] KR-KR} Rd4 {[%emt 0:00:02]} 58. Kf3 {[%emt 0:00:00]} Kg6 {[%emt 0:00:16]} 59. a5 {[%emt 0:00:01]} Kg5 {[%emt 0:00:05]} 60. b5 {[%emt 0:00:00]} cxb5 {[%emt 0:00:23]} 61. Rxb5 {[%emt 0:00:01]} Rd3+ {[%emt 0:00:00]} 62. Ke2 {[%emt 0:00:02]} Ra3 {[%emt 0:00:09]} 63. Rxb7 {[%emt 0:00:12]} Kxg4 {[%emt 0:00:02]} 64. Rb6 {[%emt 0:00:23]} Kg5 {[%emt 0:00:05]} 65. a6 {[%emt 0:00:00]} Kf4 {[%emt 0:00:34]} 66. Rxf6+ {[%emt 0:00:02]} Kxe4 {[%emt 0:00:02]} 67. Kd2 {[%emt 0:00:04]} Ra2+ {[%emt 0:00:04]} 68. Kc3 {[%emt 0:00:00]} Ke3 {[%emt 0:00:02]} 69. Kb4 {[%emt 0:00:01]} e4 {[%emt 0:00:14]} 70. Re6 {[%emt 0:00:02]} Kd4 {[%emt 0:00:05]} 71. Kb5 {[%emt 0:00:01]} Kd5 {[%emt 0:00:25]} 72. Re8 {[%emt 0:00:01]} Rb2+ {[%emt 0:00:03]} 73. Ka5 {[%emt 0:00:01]} Kd4 {[%emt 0:00:25]} 74. a7 {[%emt 0:00:11]} Ra2+ {[%emt 0:00:10]} 75. Kb6 {[%emt 0:00:01]} e3 {[%emt 0:00:04]} 76. Kb7 {[%emt 0:00:02]} Rb2+ {[%emt 0:00:04]} 77. Ka6 {[%emt 0:00:03]} e2 {[%emt 0:00:16]} 78. Rxe2 {[%emt 0:00:01]} Rxe2 79. a8=Q Ra2+ {[%emt 0:00:16]} 80. Kb7 Rxa8 81. Kxa8 {Weighted Error Value: White=0.11 (very precise) /Black=0.18 (very precise)} 1/2-1/2

[Event "Szansa Chess Open 2022"]
[Site "Warsaw"]
[Date "2022.09.18"]
[Round "9.14"]
[White "Wadelek, Karol"]
[Black "Smykalo, Severyn"]
[Result "1-0"]
[ECO "A11"]
[WhiteElo "1943"]
[BlackElo "1840"]
[Annotator "TA"]
[PlyCount "131"]
[EventDate "2022.09.17"]
[EventCountry "POL"]
[SourceTitle "playchess.com"]
[Source "ChessBase"]
[SourceQuality "1"]
[TimeControl "900+10"]

{[%evp 18,131,25,23,31,14,89,45,65,34,52,38,46,57,83,60,52,0,0,0,0,0,0,-78,0,0,10,10,10,10,17,17,10,10,72,54,160,154,168,177,160,175,179,170,238,232,229,227,228,233,235,229,229,215,201,125,118,24,186,199,162,114,112,110,135,144,240,0,0,0,325,304,1926,1695,1646,1606,1630,1639,12842,12843,12841,0,1221,854,1947,945,1211,889,12837,12838,12838,12839,12843,12843,12844,12843,12844,12843,12844,0,12844,12844,12845,12845,12846,12847,12849,12847,12847,12846,12848,12849,12850,12850,27999,27999]} 1. c4 {[%emt 0:00:02]} c6 {[%emt 0:00:03]} 2. Nf3 {[%emt 0:00:09]} d5 {[%emt 0:00:02]} 3. e3 {[%emt 0:00:01]} Nf6 {[%emt 0:00:04]} 4. Nc3 {[%emt 0:00:04]} e6 {[%emt 0:00:13]} 5. b3 {[%emt 0:00:11]} Nbd7 {[%emt 0:00:05]} 6. Bb2 {[%emt 0:00:18]} Bd6 {[%emt 0:00:02]} 7. Be2 {[%emt 0:00:04]} O-O {[%emt 0:00:03]} 8. O-O {[%emt 0:00:03]} Qe7 {[%emt 0:00:06]} 9. d4 {[%emt 0:00:17]} Rd8 {[%emt 0:00:25]} 10. Qc2 {[%emt 0:00:12]} dxc4 {[%emt 0:00:02] D45: Semi-Slav: 5 e3.} 11. Bxc4 {[%emt 0:00:28] [#]} Nb6 $146 {[%emt 0:01:18]} (11... b5 $11 12. Bd3 Bb7) ({Predecessor:} 11... b5 12. Bd3 Bb7 13. Ne4 Nxe4 14. Bxe4 Nf6 15. Nd2 Rac8 16. Rad1 c5 17. Bxb7 Qxb7 18. dxc5 Rxc5 {1-0 (57) Grandell,A (2290)-Kucuksari,K (2125) Stockholm 2016}) 12. Be2 {[%emt 0:00:31]} Nbd5 {[%emt 0:01:14] White is slightly better.} 13. Rad1 {[%emt 0:00:55]} a5 {[%emt 0:00:44]} 14. Na4 {[%emt 0:00:29]} b5 {[%emt 0:02:21] And now ...Nb4 would win.} 15. Nc5 {[%emt 0:01:32]} (15. Qxc6 $2 Bd7 16. Qc2 bxa4 $19) 15... Bb7 {[%emt 0:01:58]} 16. a3 {[%emt 0:01:44]} Bxc5 {[%emt 0:02:06]} 17. Qxc5 {[%emt 0:00:32]} ({Better is} 17. dxc5 $14 b4 18. Rd2) 17... Qxc5 $11 {[%emt 0:00:19]} 18. dxc5 {[%emt 0:00:02]} Ne4 {[%emt 0:00:27]} 19. Rc1 {[%emt 0:00:53] Against Ndc3} b4 {[%emt 0:01:36]} 20. a4 {[%emt 0:00:18]} (20. Bd3 $11 Ndc3 21. Bxe4 Nxe4 22. axb4) 20... Nec3 {[%emt 0:00:19] Pair of Knights!} (20... Ndc3 $17 21. Bc4 Ba6 22. Bxa6 Rxa6) 21. Bc4 {[%emt 0:00:46]} Ba6 {[%emt 0:00:09]} 22. Bxa6 {[%emt 0:00:42]} Rxa6 {[%emt 0:00:05]} 23. Rfe1 {[%emt 0:00:08] Against Ne2+} Ne4 {[%emt 0:00:56]} 24. Red1 {[%emt 0:00:57]} Raa8 $1 {[%emt 0:00:50]} 25. Ne5 {[%emt 0:00:18][%cal Bf3e5,Be5c4,Bc4a5][%mdl 32]} Rac8 {[%emt 0:02:54]} (25... Ne7 $11 26. Rd4 Rxd4 27. exd4 Nd2) 26. Nc4 {[%emt 0:00:11]} Nxc5 (26... Ra8 $14) 27. Nxa5 $16 {[%emt 0:00:21][%mdl 64] Discovered Attack} Nc3 {[%emt 0:00:51]} 28. Rxd8+ {[%emt 0:03:25]} Rxd8 {[%emt 0:00:02]} 29. Bxc3 {[%emt 0:00:04]} bxc3 $18 {[%emt 0:00:10][%mdl 4096] Endgame KRN-KRN} 30. Kf1 {[%emt 0:00:11]} ({Don't go for} 30. Nxc6 $2 Nxb3 31. Rf1 Rd2 $19) 30... Rd3 {[%emt 0:00:23]} (30... Ra8 $142) 31. Rc2 $1 {[%emt 0:01:01]} Kf8 {[%emt 0:00:20]} 32. Ke2 {[%emt 0:00:03]} ({Much less strong is} 32. Nxc6 $6 Nxb3 33. Ke2 Nc5 $16) 32... Rd5 {[%emt 0:00:04]} 33. Nxc6 {[%emt 0:01:18]} Nxb3 {[%emt 0:00:11]} 34. Rxc3 {[%emt 0:00:08]} Rd2+ {[%emt 0:00:11]} 35. Kf3 {[%emt 0:00:13]} Rb2 {[%emt 0:00:03]} 36. Rd3 {[%emt 0:01:42][%cal Rd3d8]} Nd2+ {[%emt 0:00:04]} 37. Kg3 {[%emt 0:00:37]} (37. Kf4 $16 {[%cal Rd3d8]} f6 38. a5) 37... Ne4+ $2 {[%emt 0:00:07]} (37... g5 $1 $11 38. f3 Nf1+ 39. Kh3 Rc2) 38. Kf4 {[%emt 0:00:17][%cal Rd3d8]} f5 {[%emt 0:00:05] [#]} 39. f3 {[%emt 0:00:17]} ({White should play} 39. Ke5 $1 $18) 39... Nc5 $16 {[%emt 0:00:14] Prevents Rd7.} 40. Ra3 {[%emt 0:00:13]} Kf7 {[%emt 0:00:13]} 41. a5 {[%emt 0:00:10] Hoping for a6.} Rxg2 {[%emt 0:00:14] [#]} (41... Na6 $16 {was called for.} 42. Kg3 Kf6) 42. a6 $2 {[%emt 0:00:06]} ({White must play} 42. Ke5 $1 $18) 42... Kf6 $1 $11 {[%emt 0:00:01][%csl Gf6,Gg2][%cal Rg7g5]} 43. e4 {[%emt 0:00:05]} (43. h4 $2 {leads to mate.} e5+ 44. Nxe5 Ne6#) 43... g5+ $2 {[%emt 0:00:03][%mdl 8192] Black is on the road to losing.} (43... e5+ $1 $11 {and Black is okay.} 44. Nxe5 g5+ 45. Ke3 Kxe5 46. exf5 Nxa6 47. Rxa6 Kxf5) 44. Ke3 $18 {[%emt 0:00:03]} e5 $2 {[%emt 0:00:36]} (44... f4+ 45. Kd4 Nxa6) 45. exf5 {[%emt 0:00:10] White threatens a7 and mate.} Nxa6 {[%emt 0:00:02]} 46. Rxa6 {[%emt 0:00:09] Nd4+ is the strong threat.} Rxh2 {[%emt 0:00:04] KRN-KR} 47. Nd4+ {[%emt 0:00:05]} Kf7 {[%emt 0:00:03]} 48. Ne6 {[%emt 0:00:30]} Kf6 {[%emt 0:00:04]} 49. Nd4+ {[%emt 0:00:05]} (49. Nc5+ $142 Kg7 50. f6+ Kg6 51. Nd3) 49... Kf7 {[%emt 0:00:01]} 50. Ne2 {[%emt 0:00:09]} h5 {[%emt 0:00:04]} 51. Rg6 {[%emt 0:00:10]} (51. Nc1 $142 e4 52. fxe4) 51... Rg2 {[%emt 0:00:04]} 52. Nc3 {[%emt 0:00:12] Strongly threatening Ne4.} Rg1 {[%emt 0:00:36]} 53. Ne4 {[%emt 0:00:05]} g4 {[%emt 0:00:02]} 54. fxg4 {[%emt 0:00:10]} hxg4 {[%emt 0:00:03]} 55. Kf2 {[%emt 0:00:16]} Ra1 {[%emt 0:00:11]} 56. Rxg4 {[%emt 0:00:03]} Ra2+ {[%emt 0:00:01]} 57. Ke3 {[%emt 0:00:04]} Ra3+ {[%emt 0:00:00]} 58. Kf2 {[%emt 0:00:01]} Ra2+ {[%emt 0:00:02]} 59. Kg3 {[%emt 0:00:02]} Ra1 {[%emt 0:00:06]} 60. Kh4 {[%emt 0:00:04]} Rf1 {[%emt 0:00:05]} 61. Kg5 {[%emt 0:00:09]} Rf3 {[%emt 0:00:02]} 62. Rh4 {[%emt 0:00:07]} Kg7 {[%emt 0:00:04]} 63. f6+ {[%emt 0:00:04]} Kg8 {[%emt 0:00:01]} 64. Kg6 {[%emt 0:00:23]} Rf4 {[%emt 0:00:24]} 65. f7+ {[%emt 0:00:45]} Rxf7 {[%emt 0:00:25]} 66. Nf6+ {[%emt 0:00:01] Weighted Error Value: White=0.40/Black=0.41} 1-0

[Event "Szansa Chess Open 2022"]
[Site "Warsaw"]
[Date "2022.09.18"]
[Round "9.15"]
[White "Derylo, Kamil"]
[Black "Smieszek, Wojciech"]
[Result "1/2-1/2"]
[ECO "A45"]
[WhiteElo "2143"]
[BlackElo "2082"]
[Annotator "TA"]
[PlyCount "166"]
[EventDate "2022.09.17"]
[EventCountry "POL"]
[SourceTitle "playchess.com"]
[Source "ChessBase"]
[SourceQuality "1"]
[TimeControl "900+10"]

{[%evp 9,166,25,26,5,15,-34,0,-22,22,26,15,9,10,0,-12,-4,5,0,23,24,29,-26,10,-8,17,-8,-6,-19,-20,-18,0,0,60,0,0,0,49,18,49,-6,133,75,152,169,157,129,198,194,162,92,72,19,18,30,180,-116,0,-33,-41,-52,41,0,22,24,24,-16,-11,-59,-2,-12,0,0,-10,-65,403,-124,-27,-31,90,-169,-181,-153,-174,-178,0,-147,-130,-162,-131,-225,-133,-313,-273,-476,-363,-321,0,-217,-192,-199,-18,-18,0,0,0,-51,-49,-181,-172,-272,-265,-353,-328,-300,-51,-53,0,0,0,0,0,0,0,0,0,0,0,0,0,0,0,0,0,0,0,0,0,0,0,0,0,0,0,0,0,0,0,0,0,0,0,0,0,0,0,0,0,0,0]} 1. d4 {[%emt 0:00:01]} Nf6 {[%emt 0:00:01]} 2. Bg5 {[%emt 0:00:02]} c5 {[%emt 0:00:01]} 3. d5 {[%emt 0:00:02]} e6 {[%emt 0:00:02]} 4. Nc3 {[%emt 0:00:13]} d6 {[%emt 0:00:59]} 5. e4 {[%emt 0:00:03]} Be7 {[%emt 0:00:08][%cal Of6d5]} 6. Nf3 {[%emt 0:00:58] A45: Trompowsky Attack.} O-O {[%emt 0:00:15][%cal Of6d5]} 7. Be2 {[%emt 0:00:12]} (7. Bf4 $11) 7... a6 {[%emt 0:00:05]} (7... Nxd5 {seems wilder.} 8. Nxd5 Bxg5 9. Nxg5 exd5 10. Qxd5 Nd7) 8. a4 {[%emt 0:00:01]} exd5 {[%emt 0:00:28]} (8... Nxd5 {keeps more tension.} 9. Nxd5 Bxg5 10. Nxg5 exd5 11. Qxd5 Nd7) 9. exd5 {[%emt 0:00:04]} Bg4 {[%emt 0:00:20] [#]} 10. O-O $146 {[%emt 0:00:08]} ({Predecessor:} 10. Be3 Re8 11. O-O Nbd7 12. a5 Bf8 13. Qd2 Bxf3 14. Bxf3 Ne5 15. Be2 g6 16. h3 {1-0 (44) Taylor,R (1673)-Spencer,E Llandudno 2019}) 10... Nbd7 {[%emt 0:00:08]} 11. Nd2 {[%emt 0:00:25]} Bxe2 {[%emt 0:00:07]} 12. Qxe2 {[%emt 0:00:01]} Re8 {[%emt 0:00:08][%cal Of6d5]} (12... Nxd5 $5 13. Nxd5 Bxg5 $11) 13. Bf4 {[%emt 0:02:04]} Bf8 {[%emt 0:00:16]} 14. Qd1 {[%emt 0:01:07]} g6 {[%emt 0:00:14]} 15. Re1 {[%emt 0:00:01]} (15. h3 $142) 15... Qc7 {[%emt 0:00:18]} 16. Nc4 {[%emt 0:01:00]} Nb6 {[%emt 0:00:06]} 17. Nxb6 {[%emt 0:02:18]} Qxb6 {[%emt 0:00:02]} 18. Qd2 {[%emt 0:00:02]} Bg7 {[%emt 0:00:29]} (18... Qxb2 $2 19. Reb1 Qb4 20. Rxb4 $18) 19. a5 {[%emt 0:00:34]} Qc7 {[%emt 0:00:17]} 20. h3 {[%emt 0:00:03]} Nd7 {[%emt 0:00:31]} (20... Rad8 $11) 21. Rxe8+ {[%emt 0:00:33]} (21. Ne4 $14) 21... Rxe8 $11 {[%emt 0:00:02]} 22. Re1 {[%emt 0:00:02]} Ne5 {[%emt 0:00:42]} (22... Rxe1+ $11 {deserves consideration.} 23. Qxe1 Nf6) 23. Bg3 {[%emt 0:00:32]} Rd8 {[%emt 0:00:45]} (23... Qxa5 $2 24. f4 $18) 24. Qe2 {[%emt 0:00:44]} (24. Ne4 $14) 24... g5 {[%emt 0:01:46]} (24... Qxa5 $11 25. Bh4 Rf8) 25. h4 {[%emt 0:00:29]} (25. Qh5 $142) 25... Qxa5 {[%emt 0:00:34]} (25... Re8 $142) 26. hxg5 $16 {[%emt 0:00:11]} Qb4 {[%emt 0:00:18]} 27. f4 {[%emt 0:01:50]} ({And not} 27. Bxe5 Bxe5 28. Ne4 Qxb2 $11) 27... Qxb2 {[%emt 0:02:32]} (27... Ng6 $16 {is a better defense.}) 28. Ne4 $18 {[%emt 0:00:19]} Ng6 {[%emt 0:02:54]} 29. f5 {[%emt 0:00:36]} (29. Kh2 $1 $18) 29... Ne5 $16 {[%emt 0:00:19] [#]} 30. Nxd6 $1 {[%emt 0:01:40]} Qd4+ $11 {[%emt 0:01:23]} 31. Bf2 {[%emt 0:01:04]} Qxd5 {[%emt 0:00:41]} (31... Qf4 $1 $11 32. Nxb7 Rxd5) 32. f6 $2 {[%emt 0:00:05]} (32. Ne4 $1 $18) 32... Bf8 {[%emt 0:01:18]} (32... Qxd6 $17 33. Qxe5 Bf8 34. Qxd6 Bxd6) 33. Nf5 {[%emt 0:00:41]} (33. Nxb7 $5 Qxb7 34. Qxe5 $11) 33... Ng6 {[%emt 0:00:16]} 34. Qg4 {[%emt 0:00:36]} Qd7 {[%emt 0:00:34]} (34... b5 $15) 35. Kh2 {[%emt 0:01:24][%mdl 1024] White has compensation.} Bd6+ {[%emt 0:00:40]} 36. Kh1 {[%emt 0:00:02]} Bf8 $1 {[%emt 0:00:15]} 37. Bg3 {[%emt 0:00:21]} Kh8 {[%emt 0:00:31]} 38. Re3 {[%emt 0:00:07]} (38. Kh2 $11 {is more appropriate.}) 38... Qd1+ {[%emt 0:00:04]} (38... c4 $15) 39. Qxd1 {[%emt 0:00:05]} Rxd1+ {[%emt 0:00:01]} 40. Kh2 {[%emt 0:00:01] Threatens to win with Re8.} Rd8 {[%emt 0:00:10] Prevents Re8.} 41. Bc7 {[%emt 0:00:29]} (41. Rb3 $11) 41... Rd5 $2 {[%emt 0:00:14][%mdl 8192]} (41... Rd7 $1 $15 42. Ba5 h6) 42. Ng3 $2 {[%emt 0:00:37]} ({Only move:} 42. Nh6 $1 $18) 42... Rxg5 {[%emt 0:00:34]} (42... h6 $17 43. gxh6 Bxh6 44. Re8+ Kh7) 43. Re8 {[%emt 0:00:01][%cal Oc7f4]} Rd5 {[%emt 0:00:06]} (43... b5 $15 {stays ahead.}) 44. Kh3 $2 {[%emt 0:00:23][%mdl 8192] White is more active.} (44. c4 $1 $16 {[%cal Rc4d5] is forced if you want to stay better.} Rg5 45. Ne2) 44... h5 $19 {[%emt 0:00:04]} 45. Ne4 {[%emt 0:00:08]} Kh7 {[%emt 0:00:05]} 46. g3 {[%emt 0:00:08]} Kh6 $2 {[%emt 0:00:05]} ({Better is} 46... c4 $19 {White must now prevent ...b5.} 47. g4 Kh6) 47. Kg2 {[%emt 0:00:08]} (47. Bf4+ $11 {was the only way to keep the balance.} Kh7 48. Bc7) 47... b5 {[%emt 0:00:13]} 48. Kf3 {[%emt 0:00:02]} c4 {[%emt 0:00:29]} 49. Bf4+ {[%emt 0:00:02]} (49. Ra8 $17 {was called for.}) 49... Nxf4 {[%emt 0:00:03]} (49... Kh7 $19 {aiming for ...b4.} 50. Be3 b4) 50. Rxf8 $2 {[%emt 0:00:02][%mdl 4096] Endgame KRN-KRN} (50. gxf4 $17 Ba3 51. Rh8+ Kg6 52. Rg8+ Kf5 53. Rh8) 50... Ng6 {[%emt 0:00:07]} 51. Ra8 {[%emt 0:00:08]} (51. Rb8) 51... Ne5+ {[%emt 0:00:14]} 52. Kf4 {[%emt 0:00:05]} Ng6+ {[%emt 0:00:02]} (52... b4 $19 53. Rxa6 b3 54. cxb3 cxb3) 53. Ke3 $2 {[%emt 0:00:06]} (53. Kf3 $1 $11 {and White is okay.}) 53... b4 $1 {[%emt 0:00:25]} 54. Rxa6 {[%emt 0:00:05] [#]} b3 $2 {[%emt 0:00:17]} (54... Ne5 $1 $19 {Strongly threatening ...b3.} 55. Rb6 b3 56. cxb3 Rd3+ 57. Ke2 Rxb3) 55. cxb3 $11 {[%emt 0:00:06]} Rd3+ {[%emt 0:00:01]} 56. Ke2 {[%emt 0:00:08]} Rxb3 {[%emt 0:00:04]} 57. Ra7 {[%emt 0:00:49]} (57. Nd6 $11) 57... Ne5 $15 {[%emt 0:00:10] Hoping for ...Ng4.} 58. Re7 {[%emt 0:00:02]} ({White has to play} 58. Rc7 $1 $15) 58... Ng4 $19 {[%emt 0:00:14]} 59. Kd2 {[%emt 0:00:23]} (59. Nd6 $142) 59... Kg6 {[%emt 0:00:08]} 60. Rc7 {[%emt 0:00:07] [#]} Rd3+ $1 {[%emt 0:00:26]} ({Not} 60... Nxf6 61. Rc6 Rf3 62. Ke2 $15) 61. Kc2 {[%emt 0:00:23]} Rf3 $2 {[%emt 0:00:18]} ({Stronger than} 61... Nxf6 62. Rc6 $17) (61... Ne3+ $19 62. Kc1 Kf5) 62. Kd2 $1 $15 {[%emt 0:00:08]} Nxf6 {[%emt 0:00:05]} ({Black should play} 62... Ne5 $15 63. Ke2 Ra3) 63. Ke2 {[%emt 0:00:15] The position is equal.} Rf5 {[%emt 0:00:11]} 64. Nxf6 {[%emt 0:00:08]} Kxf6 {[%emt 0:00:18]} 65. Rxc4 $11 {[%emt 0:00:01] KR-KR} Kg5 {[%emt 0:00:02]} 66. Ra4 {[%emt 0:00:05]} Re5+ {[%emt 0:00:08]} 67. Kf3 {[%emt 0:00:03]} Rb5 {[%emt 0:00:01]} 68. Ra3 {[%emt 0:00:04]} f5 {[%emt 0:00:03]} 69. Rc3 {[%emt 0:00:02]} Rb4 {[%emt 0:00:03]} 70. Ra3 {[%emt 0:00:06]} h4 {[%emt 0:00:02]} 71. gxh4+ {[%emt 0:00:04]} Rxh4 {[%emt 0:00:01]} 72. Kg2 {[%emt 0:00:16] Inhibits Rh3.} Rb4 {[%emt 0:00:02]} 73. Rc3 {[%emt 0:00:09]} Kf4 {[%emt 0:00:05]} 74. Ra3 {[%emt 0:00:42]} Rb2+ {[%emt 0:00:13]} 75. Kf1 {[%emt 0:00:05]} Rd2 {[%emt 0:00:10]} 76. Rb3 {[%emt 0:00:02]} Ke4 {[%emt 0:00:11]} 77. Ra3 {[%emt 0:00:05]} Rd3 {[%emt 0:00:12]} 78. Rxd3 {[%emt 0:00:22]} Kxd3 {[%emt 0:00:01] KP-K} 79. Kf2 {[%emt 0:00:01]} Kd4 {[%emt 0:00:03]} 80. Kf3 {[%emt 0:00:04]} Ke5 {[%emt 0:00:01]} 81. Ke3 {[%emt 0:00:00]} f4+ {[%emt 0:00:01]} 82. Kf3 {[%emt 0:00:01]} Kf5 {[%emt 0:00:01]} 83. Kf2 {[%emt 0:00:01]} Ke5 {Never resign too early!  Weighted Error Value: White=0.68/Black=0.50} (83... Ke4 $5) 1/2-1/2